bitfinex/quotes_SOLUSD_20240626
["timestamp","ask_amount","ask_price","bid_price","bid_amount"]
[1719398656844,14.70511056,136.67,136.63,25.6156]
[1719398659946,7.3161,136.69,136.63,18.2971]
[1719398660151,7.3161,136.69,136.65,7.3177]
[1719398661161,23.89321056,136.71,136.63,18.2971]
[1719398661476,7.38821056,136.69,136.63,18.2971]
[1719398661647,7.3172,136.67,136.63,25.616]
[1719398663165,25.67811056,136.69,136.6,24.3265]
[1719398663469,7.38821056,136.67,136.6,24.3265]
[1719398663662,7.3188,136.64,136.6,25.6215]
[1719398663967,7.38821056,136.67,136.61,7.3199]
[1719398663968,7.3181,136.65,136.61,7.3199]
[1719398664664,7.3181,136.65,136.61,7.77178973]
[1719398664863,7.3176,136.66,136.62,7.3195]
[1719398666737,7.3176,136.66,136.61,7.3198]
[1719398667369,7.3176,136.66,136.62,7.3195]
[1719398679475,7.3179,136.65,136.61,7.3198]
[1719398680878,7.38821056,136.67,136.6,25.9616]
[1719398680879,7.3185,136.64,136.6,25.9616]
[1719398681879,7.3181,136.65,136.61,7.32]
[1719398692497,7.3189,136.64,136.6,18.3012]
[1719398693099,7.3189,136.64,136.6,25.6215]
[1719398693399,7.3189,136.64,136.61,7.32]
[1719398693599,7.3181,136.65,136.61,7.32]
[1719398694772,41.33841056,136.67,136.6,25.6216]
[1719398694773,7.3185,136.64,136.6,25.6216]
[1719398697198,7.3181,136.65,136.61,7.32]
[1719398700208,7.3187,136.64,136.6,18.3012]
[1719398700592,7.3187,136.64,136.6,25.6218]
[1719398701308,7.3192,136.63,136.59,7.3209]
[1719398702006,7.3197,136.62,136.58,7.3215]
[1719398702381,18.2936,136.66,136.57,32.285]
[1719398702382,7.3201,136.61,136.57,32.285]
[1719398703509,7.3201,136.61,136.57,25.6264]
[1719398704109,7.3196,136.62,136.57,18.3043]
[1719398704287,7.3187,136.64,136.59,7.3207]
[1719398704607,7.3187,136.64,136.6,7.3205]
[1719398704796,7.3181,136.65,136.6,7.3205]
[1719398704996,7.3181,136.65,136.59,18.3025]
[1719398704997,7.3181,136.65,136.61,7.3199]
[1719398705987,7.3154,136.7,136.65,7.3176]
[1719398707481,7.3158,136.69,136.65,7.3176]
[1719398710600,7.3158,136.69,136.64,7.3183]
[1719398711015,16.5211,136.71,136.63,18.2965]
[1719398711191,7.3177,136.66,136.61,7.32]
[1719398712108,7.3177,136.66,136.62,7.3195]
[1719398712495,7.317,136.67,136.62,7.3195]
[1719398713216,7.3174,136.66,136.61,7.3199]
[1719398713405,18.2915,136.68,136.6,34.5218]
[1719398714397,7.3186,136.64,136.6,16.2212]
[1719398714786,18.2939,136.66,136.57,21.4034]
[1719398714988,16.7956,136.65,136.54,43.2176]
[1719398715194,7.3207,136.6,136.56,18.3063]
[1719398716220,7.3207,136.6,136.56,25.6289]
[1719398717129,7.3212,136.59,136.56,18.3063]
[1719398718118,35.092,136.65,136.53,40.9159]
[1719398718119,7.322,136.58,136.53,40.9159]
[1719398718699,7.322,136.58,136.54,7.3236]
[1719398719211,7.3206,136.6,136.55,7.3232]
[1719398720220,61.50103109,136.64,136.56,33.1151]
[1719398720435,7.3188,136.64,136.59,7.3208]
[1719398720599,7.3197,136.62,136.57,25.6271]
[1719398722116,16.4556,136.65,136.57,18.3051]
[1719398722327,7.3183,136.65,136.6,7.3202]
[1719398722556,7.3183,136.65,136.61,7.3198]
[1719398722854,13.96697723,136.66,136.61,7.3198]
[1719398723757,7.318,136.65,136.61,7.3198]
[1719398725375,6.64937723,136.66,136.61,18.3]
[1719398725667,7.3172,136.67,136.63,18.297]
[1719398726036,16.3458,136.69,136.61,7.32]
[1719398726462,23.77228834,136.69,136.61,7.32]
[1719398726872,7.59648834,136.68,136.59,15.3449]
[1719398727079,7.3186,136.64,136.59,33.6475]
[1719398727269,7.3181,136.65,136.6,7.3205]
[1719398727676,7.3185,136.64,136.6,7.3205]
[1719398728568,7.3194,136.63,136.59,33.6475]
[1719398728886,7.3194,136.63,136.59,40.9686]
[1719398729889,7.3186,136.64,136.6,7.3206]
[1719398730196,7.3181,136.65,136.61,7.32]
[1719398731592,7.3181,136.65,136.6,7.3205]
[1719398732088,7.3185,136.64,136.6,7.3205]
[1719398734499,7.3185,136.64,136.59,40.9685]
[1719398735093,18.2938,136.66,136.59,15.3449]
[1719398735298,7.3201,136.61,136.59,15.3449]
[1719398735512,7.3197,136.62,136.59,15.3449]
[1719398737394,7.3201,136.61,136.56,58.7438]
[1719398737695,18.2964,136.64,136.56,31.7038]
[1719398737877,7.3203,136.61,136.56,31.7038]
[1719398738479,7.3203,136.61,136.57,7.3221]
[1719398738908,7.3206,136.6,136.56,31.7039]
[1719398739072,7.3202,136.61,136.56,31.7039]
[1719398739588,18.2992,136.62,136.54,16.4802]
[1719398740107,7.3208,136.6,136.55,7.3229]
[1719398741104,7.3208,136.6,136.56,7.3227]
[1719398742712,7.3208,136.6,136.55,26.26871752]
[1719398743204,7.3212,136.59,136.55,18.308]
[1719398743417,7.3218,136.58,136.54,23.8039]
[1719398743696,7.3218,136.58,136.54,16.4802]
[1719398744607,7.3218,136.58,136.54,23.8039]
[1719398746500,7.3229,136.56,136.54,16.4802]
[1719398746695,18.3027,136.6,136.54,16.4802]
[1719398746884,7.3224,136.57,136.54,16.4802]
[1719398748808,7.3219,136.58,136.54,16.4802]
[1719398749502,7.3219,136.58,136.54,23.804]
[1719398752015,7.3213,136.59,136.54,23.804]
[1719398754222,7.3213,136.59,136.55,7.3231]
[1719398754399,7.3213,136.59,136.55,6.8231]
[1719398756328,7.3207,136.6,136.56,7.3227]
[1719398756519,7.3202,136.61,136.56,7.3227]
[1719398756890,7.3207,136.6,136.56,7.3227]
[1719398757123,7.3207,136.6,136.55,25.6309]
[1719398757900,18.3008,136.61,136.54,16.4802]
[1719398758199,7.76648834,136.6,136.54,16.4802]
[1719398758923,7.3218,136.58,136.54,23.8039]
[1719398761213,7.3212,136.59,136.55,7.3232]
[1719398762320,7.3212,136.59,136.54,42.1133]
[1719398764216,7.3219,136.58,136.54,42.1133]
[1719398765150,7.3223,136.57,136.54,34.7896]
[1719398766142,7.42648834,136.6,136.54,34.7896]
[1719398766449,7.3212,136.59,136.55,7.3229]
[1719398767943,7.3207,136.6,136.56,7.3226]
[1719398768157,25.72388834,136.64,136.58,16.2887]
[1719398768158,7.3199,136.62,136.58,16.2887]
[1719398768333,7.3199,136.62,136.58,23.6102]
[1719398768536,7.3191,136.63,136.58,41.9142]
[1719398768834,7.3196,136.62,136.58,41.9143]
[1719398770245,7.3196,136.62,136.58,34.5927]
[1719398773355,7.42648834,136.64,136.58,34.5927]
[1719398773541,335.58694733,136.67,136.61,7.32]
[1719398773542,7.3181,136.65,136.61,7.32]
[1719398774559,7.3181,136.65,136.6,25.6218]
[1719398776370,7.3181,136.65,136.61,7.32]
[1719398776838,7.3181,136.65,136.6,25.6218]
[1719398777044,7.3185,136.64,136.6,25.6218]
[1719398778260,7.3181,136.65,136.6,25.6218]
[1719398778669,260.8,136.67,136.58,16.2887]
[1719398778670,7.3197,136.62,136.58,16.2887]
[1719398778890,7.42648834,136.64,136.58,16.2887]
[1719398779189,7.3207,136.6,136.58,16.2887]
[1719398779355,7.3203,136.61,136.58,16.2887]
[1719398780073,7.3197,136.62,136.58,16.2887]
[1719398780595,7.3197,136.62,136.58,23.6102]
[1719398783392,7.3192,136.63,136.59,7.321]
[1719398783764,14.74508834,136.64,136.6,7.3205]
[1719398784191,7.3179,136.65,136.61,7.3199]
[1719398785095,7.3185,136.64,136.6,7.3204]
[1719398785589,7.319,136.63,136.59,25.6235]
[1719398786061,7.319,136.63,136.59,18.3025]
[1719398786772,7.319,136.63,136.59,25.6236]
[1719398788497,7.319,136.63,136.59,18.3025]
[1719398789568,7.319,136.63,136.59,25.6236]
[1719398790300,7.3185,136.64,136.6,7.3205]
[1719398793208,7.3185,136.64,136.59,25.6234]
[1719398793506,7.3177,136.66,136.61,25.6196]
[1719398793680,7.3177,136.66,136.62,7.3195]
[1719398794288,7.3177,136.66,136.61,52.66]
[1719398794493,7.3177,136.66,136.61,25.62]
[1719398794911,7.3177,136.66,136.62,29.1511]
[1719398795208,268.117,136.67,136.63,7.3188]
[1719398795811,268.117,136.67,136.62,56.191]
[1719398796324,268.117,136.67,136.63,45.3371]
[1719398796325,260.8,136.67,136.63,45.3371]
[1719398796499,7.3148,136.71,136.67,7.3168]
[1719398796699,7.3149,136.71,136.67,25.6086]
[1719398796904,7.3149,136.71,136.67,18.2919]
[1719398797392,7.3161,136.69,136.66,15.5975]
[1719398797626,7.3153,136.7,136.66,15.5975]
[1719398799019,7.3159,136.69,136.66,15.5975]
[1719398799712,15.946,136.72,136.63,16.1515]
[1719398799919,18.2885,136.7,136.63,16.1515]
[1719398800117,7.3169,136.67,136.63,23.4704]
[1719398801705,7.3165,136.68,136.63,23.4704]
[1719398801904,7.3165,136.68,136.64,7.3184]
[1719398802521,7.3165,136.68,136.63,16.1515]
[1719398802522,7.3169,136.67,136.63,23.4704]
[1719398803028,7.3169,136.67,136.63,16.1515]
[1719398804027,7.3169,136.67,136.63,23.4704]
[1719398805807,7.3165,136.68,136.63,23.4704]
[1719398806209,260.8,136.67,136.63,23.4704]
[1719398806724,260.8,136.67,136.64,7.3184]
[1719398807837,260.8,136.67,136.65,7.3177]
[1719398808938,260.8,136.67,136.64,25.6138]
[1719398812329,7.316,136.69,136.64,25.6138]
[1719398813152,7.316,136.69,136.65,7.3179]
[1719398813740,7.316,136.69,136.64,25.6138]
[1719398814348,7.3166,136.68,136.64,18.2955]
[1719398815119,7.3169,136.67,136.64,18.2955]
[1719398815425,7.3175,136.66,136.63,16.1515]
[1719398816659,7.317,136.67,136.63,16.1515]
[1719398818569,7.3181,136.65,136.61,25.6191]
[1719398818741,7.3181,136.65,136.6,16.2182]
[1719398818742,7.3188,136.64,136.6,16.2182]
[1719398820174,7.319,136.63,136.6,16.2182]
[1719398820538,18.2945,136.66,136.58,18.3038]
[1719398820745,7.3197,136.62,136.58,18.3038]
[1719398821947,7.3192,136.63,136.58,25.6254]
[1719398822266,7.3186,136.64,136.58,18.3038]
[1719398822959,7.319,136.63,136.59,7.3211]
[1719398823162,7.319,136.63,136.58,25.6254]
[1719398823963,7.3185,136.64,136.59,7.3211]
[1719398825153,15.0741269,136.66,136.58,25.6253]
[1719398825354,7.76648834,136.65,136.58,25.6253]
[1719398826377,7.3195,136.62,136.58,25.6253]
[1719398827269,7.3213,136.59,136.56,15.789]
[1719398827463,7.3213,136.59,136.55,24.5354]
[1719398827464,7.3217,136.58,136.55,6.2276]
[1719398828068,7.3222,136.57,136.55,6.2276]
[1719398828254,7.3218,136.58,136.55,6.2276]
[1719398832888,7.3218,136.58,136.53,22.7094]
[1719398834983,7.3218,136.58,136.54,7.3237]
[1719398835478,7.3213,136.59,136.55,7.3233]
[1719398835669,7.3213,136.59,136.54,25.633]
[1719398836589,7.3217,136.58,136.54,25.633]
[1719398837257,7.3217,136.58,136.54,18.3094]
[1719398839018,7.3213,136.59,136.55,7.323]
[1719398839814,7.3213,136.59,136.54,25.633]
[1719398840883,7.3217,136.58,136.54,25.633]
[1719398841209,7.3223,136.57,136.53,22.7093]
[1719398842609,7.3222,136.57,136.53,22.7093]
[1719398843593,7.3219,136.58,136.53,22.7093]
[1719398844227,7.3219,136.58,136.54,7.3238]
[1719398847601,7.3219,136.58,136.53,41.0201]
[1719398855252,7.3222,136.57,136.53,41.0201]
[1719398856759,7.3219,136.58,136.53,41.0201]
[1719398857258,7.3226,136.57,136.53,41.0201]
[1719398858941,7.42648834,136.6,136.52,6.1292]
[1719398859142,7.42648834,136.6,136.51,15.5733]
[1719398859143,18.307,136.56,136.51,15.5733]
[1719398859472,7.3249,136.52,136.51,15.5733]
[1719398860164,7.3245,136.53,136.51,15.5733]
[1719398860377,7.3249,136.52,136.49,6.3877]
[1719398861158,7.3245,136.53,136.49,13.714]
[1719398861342,7.324,136.54,136.49,24.7038]
[1719398861546,7.3232,136.56,136.51,7.3251]
[1719398861748,7.3233,136.55,136.51,7.3251]
[1719398862047,53.70951285,136.59,136.53,7.3238]
[1719398862048,7.322,136.58,136.53,7.3238]
[1719398862247,7.322,136.58,136.54,7.3237]
[1719398862648,14.74778834,136.59,136.54,13.9819]
[1719398862865,14.74778834,136.59,136.55,7.3232]
[1719398863463,14.74778834,136.59,136.54,13.9819]
[1719398863665,7.3217,136.58,136.54,13.9819]
[1719398863866,7.3217,136.58,136.54,6.6582]
[1719398864064,7.3222,136.57,136.54,6.6582]
[1719398864638,7.42648834,136.59,136.54,6.6582]
[1719398865062,7.3228,136.56,136.54,6.6582]
[1719398865784,7.3224,136.57,136.54,6.6582]
[1719398868579,7.3232,136.56,136.54,6.6582]
[1719398868758,7.42648834,136.59,136.54,6.6582]
[1719398869076,7.3233,136.55,136.52,15.4473]
[1719398872465,7.42648834,136.59,136.52,15.4473]
[1719398873509,7.3234,136.55,136.52,15.4473]
[1719398873886,7.3229,136.56,136.52,15.4473]
[1719398877807,7.3234,136.55,136.52,15.4473]
[1719398878096,7.3229,136.56,136.52,15.4473]
[1719398878302,7.3229,136.56,136.52,22.7721]
[1719398879307,7.3229,136.56,136.52,23.17785162]
[1719398879515,7.3229,136.56,136.52,15.85305162]
[1719398880311,7.3234,136.55,136.52,15.85305162]
[1719398880503,7.3234,136.55,136.52,15.4473]
[1719398884114,7.3228,136.56,136.52,22.772]
[1719398884421,7.42648834,136.59,136.53,0.34]
[1719398884589,7.42648834,136.59,136.53,1.09522121]
[1719398885396,7.3226,136.57,136.53,8.41952121]
[1719398885597,7.3226,136.57,136.53,1.09522121]
[1719398885817,7.3228,136.56,136.53,1.09522121]
[1719398886017,7.3228,136.56,136.53,0.34]
[1719398887104,7.3228,136.56,136.52,22.772]
[1719398887105,18.3044,136.58,136.52,15.4473]
[1719398887416,25.73088834,136.58,136.52,15.4473]
[1719398887789,7.3239,136.54,136.52,15.4473]
[1719398887990,7.3235,136.55,136.52,15.4473]
[1719398888695,7.3229,136.56,136.52,15.4473]
[1719398889616,7.3233,136.55,136.52,15.4473]
[1719398890521,7.3229,136.56,136.52,15.4473]
[1719398891018,7.3223,136.57,136.52,22.7718]
[1719398891319,7.3223,136.57,136.53,7.3242]
[1719398891897,14.74838834,136.58,136.54,7.3238]
[1719398892122,7.3222,136.57,136.53,25.6348]
[1719398892993,7.42648834,136.58,136.56,7.3226]
[1719398893197,7.42648834,136.58,136.55,18.3077]
[1719398893612,7.42648834,136.58,136.54,7.3234]
[1719398893613,14.74828834,136.58,136.54,7.3234]
[1719398893808,14.74828834,136.58,136.53,7.3242]
[1719398894196,7.3224,136.57,136.52,41.0831]
[1719398894408,7.3224,136.57,136.53,0.34]
[1719398895195,7.3229,136.56,136.52,33.7584]
[1719398896824,7.3229,136.56,136.52,41.0833]
[1719398897345,25.73158834,136.58,136.49,25.6415]
[1719398897519,36.6161,136.56,136.48,15.2024]
[1719398897713,18.3115,136.53,136.48,15.2024]
[1719398897925,7.3258,136.51,136.48,15.2024]
[1719398898217,6.21393026,136.56,136.48,15.2024]
[1719398898539,7.3261,136.5,136.45,18.3205]
[1719398898831,7.3261,136.5,136.45,25.649]
[1719398899510,7.3264,136.5,136.45,18.3205]
[1719398899731,7.3264,136.5,136.45,25.649]
[1719398900438,18.3104,136.54,136.45,25.649]
[1719398900643,7.42648834,136.53,136.45,25.649]
[1719398900810,7.42648834,136.53,136.44,15.3676]
[1719398900811,7.3276,136.47,136.44,15.3676]
[1719398901016,7.3276,136.47,136.42,13.8642]
[1719398901216,7.3281,136.46,136.42,13.8642]
[1719398901720,7.3277,136.47,136.42,13.8642]
[1719398902337,7.327,136.49,136.43,7.3295]
[1719398902541,34.9078,136.52,136.43,7.3295]
[1719398902837,34.9078,136.52,136.44,0.17]
[1719398902838,7.3266,136.49,136.44,0.17]
[1719398903044,7.3266,136.49,136.44,0.34]
[1719398903345,7.3266,136.49,136.44,7.6691]
[1719398903647,7.42648834,136.51,136.44,0.34]
[1719398903648,7.3272,136.48,136.44,0.34]
[1719398903941,7.3272,136.48,136.43,25.6533]
[1719398904842,7.42648834,136.51,136.44,0.17]
[1719398905147,61.96895753,136.56,136.47,39.5656]
[1719398905323,7.324,136.54,136.49,7.3264]
[1719398906622,7.09266589,136.57,136.51,7.3253]
[1719398906824,7.3231,136.56,136.51,25.6386]
[1719398907024,14.41496589,136.57,136.52,7.3248]
[1719398907230,7.3218,136.58,136.53,22.3614]
[1719398907619,7.3218,136.58,136.53,15.0371]
[1719398907931,7.3213,136.59,136.54,7.3238]
[1719398908339,7.3217,136.58,136.53,40.6715]
[1719398909220,7.3217,136.58,136.53,47.2417]
[1719398910032,7.3213,136.59,136.54,7.3237]
[1719398910353,7.3218,136.58,136.53,47.2418]
[1719398913346,18.3022,136.6,136.53,21.6073]
[1719398913523,7.3238,136.54,136.53,15.0371]
[1719398913852,25.32068312,136.6,136.5,48.1306]
[1719398914027,7.3237,136.55,136.5,48.1306]
[1719398915431,7.3229,136.56,136.51,7.3253]
[1719398915849,7.3224,136.57,136.52,7.3248]
[1719398916035,7.3217,136.58,136.52,18.312]
[1719398916424,7.3217,136.58,136.53,7.324]
[1719398917260,7.3223,136.57,136.53,7.324]
[1719398918546,7.3228,136.56,136.52,18.312]
[1719398918853,7.3228,136.56,136.51,7.6651]
[1719398919353,7.3228,136.56,136.52,7.3249]
[1719398919649,7.3224,136.57,136.52,7.3249]
[1719398920228,7.3228,136.56,136.51,25.9788]
[1719398920432,7.3233,136.55,136.51,18.3134]
[1719398921529,25.32008312,136.6,136.51,25.6388]
[1719398921530,7.3229,136.56,136.51,25.6388]
[1719398924137,7.3234,136.55,136.51,25.6388]
[1719398924347,7.3234,136.55,136.51,18.3134]
[1719398926453,7.3234,136.55,136.51,25.6387]
[1719398926983,25.32008312,136.6,136.51,18.3134]
[1719398927134,7.01848312,136.6,136.55,7.3233]
[1719398927335,14.33928312,136.6,136.55,18.308]
[1719398927572,7.3211,136.59,136.55,25.6312]
[1719398927747,7.3211,136.59,136.55,18.308]
[1719398927950,7.01848312,136.6,136.56,7.3226]
[1719398928153,7.3201,136.61,136.57,7.3222]
[1719398928860,7.3201,136.61,136.56,7.3226]
[1719398929117,15.3433,136.62,136.57,18.3047]
[1719398929254,7.3202,136.61,136.57,18.3047]
[1719398929462,22.663,136.62,136.57,25.6268]
[1719398929663,7.3197,136.62,136.57,25.6268]
[1719398930160,7.01848312,136.63,136.57,18.3047]
[1719398930161,7.3201,136.61,136.57,18.3047]
[1719398932469,7.01848312,136.63,136.58,27.04]
[1719398932670,7.3181,136.65,136.6,7.3206]
[1719398932876,268.1175,136.66,136.61,7.66]
[1719398933561,7.3179,136.65,136.61,0.34]
[1719398933965,260.8,136.66,136.61,7.32]
[1719398935271,7.3179,136.65,136.61,7.32]
[1719398935471,260.8,136.66,136.62,7.3195]
[1719398935862,268.1175,136.66,136.61,7.32]
[1719398936192,7.3185,136.64,136.59,25.6232]
[1719398936483,7.3181,136.65,136.6,7.3206]
[1719398936681,260.8,136.66,136.59,18.3022]
[1719398936857,260.8,136.66,136.61,18.2993]
[1719398937459,7.3156,136.7,136.65,7.3178]
[1719398937995,7.3158,136.69,136.64,7.3183]
[1719398938153,7.01848312,136.73,136.69,7.3154]
[1719398938351,14.33218312,136.73,136.67,18.2912]
[1719398938548,7.3137,136.73,136.68,7.3163]
[1719398938952,7.3143,136.72,136.67,52.6479]
[1719398939155,7.3143,136.72,136.67,25.6079]
[1719398942205,7.3132,136.74,136.68,7.3162]
[1719398942365,7.3126,136.75,136.69,7.3156]
[1719398943061,7.3132,136.74,136.69,7.3156]
[1719398944274,7.3132,136.74,136.68,29.6688]
[1719398944474,7.3132,136.74,136.69,7.3157]
[1719398946100,7.3132,136.74,136.68,29.6689]
[1719398948113,7.3137,136.73,136.68,29.6689]
[1719398949302,7.3133,136.74,136.69,7.3158]
[1719398949509,7.3133,136.74,136.69,7.4858]
[1719398950389,7.3137,136.73,136.69,0.17]
[1719398950712,7.3137,136.73,136.69,0.34]
[1719398951996,7.3142,136.72,136.69,0.34]
[1719398952183,18.2822,136.75,136.68,22.3527]
[1719398952385,18.2822,136.75,136.68,16.2561]
[1719398952798,7.3153,136.7,136.68,16.2561]
[1719398953208,7.3149,136.71,136.68,16.2561]
[1719398953713,7.3147,136.71,136.66,7.3172]
[1719398954509,7.3147,136.71,136.66,9.49270888]
[1719398954709,7.3152,136.7,136.66,9.49270888]
[1719398954912,7.3152,136.7,136.65,29.709]
[1719398955418,7.317,136.67,136.62,7.3194]
[1719398955627,18.2872,136.71,136.63,7.3188]
[1719398955628,7.3164,136.68,136.63,7.3188]
[1719398956519,7.3159,136.69,136.64,7.3184]
[1719398956917,7.3163,136.68,136.63,25.616]
[1719398963343,7.3159,136.69,136.65,7.3179]
[1719398963510,31.69122784,136.74,136.65,45.3238]
[1719398963711,7.3145,136.72,136.67,7.3168]
[1719398963910,7.3137,136.73,136.68,7.3163]
[1719398964909,7.3142,136.72,136.68,7.3163]
[1719398965603,7.3142,136.72,136.67,25.6083]
[1719398965807,7.3147,136.71,136.68,0.17]
[1719398966008,7.3147,136.71,136.67,18.2916]
[1719398966535,7.3158,136.69,136.66,16.4564]
[1719398966732,7.3158,136.69,136.64,25.6139]
[1719398967241,7.3163,136.68,136.64,25.6139]
[1719398967732,7.316,136.69,136.64,25.6139]
[1719398968120,7.3163,136.68,136.64,25.6139]
[1719398968630,7.3163,136.68,136.63,30.1581]
[1719398968838,7.3163,136.68,136.64,0.17]
[1719398969137,7.3163,136.68,136.64,0.34]
[1719398969336,7.3158,136.69,136.64,7.6584]
[1719398969537,7.3158,136.69,136.65,7.3179]
[1719398969722,7.3154,136.7,136.65,7.3179]
[1719398969925,18.2848,136.73,136.66,7.3173]
[1719398970238,7.3163,136.68,136.64,0.34]
[1719398970439,7.3163,136.68,136.64,7.6584]
[1719398970834,7.3159,136.69,136.64,7.6584]
[1719398971145,7.3159,136.69,136.65,7.3179]
[1719398971720,7.3154,136.7,136.65,7.3179]
[1719398972544,7.3158,136.69,136.65,7.3179]
[1719398976853,7.3154,136.7,136.66,7.3173]
[1719398977515,7.3149,136.71,136.67,7.3168]
[1719398977748,7.64609306,136.74,136.67,7.3168]
[1719398977749,7.3143,136.72,136.67,7.3168]
[1719398978462,7.3131,136.74,136.68,18.2906]
[1719398978644,7.3148,136.71,136.67,7.3165]
[1719398978938,7.3148,136.71,136.65,18.2939]
[1719398978939,7.3148,136.71,136.66,7.3169]
[1719398979116,7.3148,136.71,136.67,2.11643121]
[1719398979826,7.3142,136.72,136.67,9.43323121]
[1719398980038,7.3142,136.72,136.68,7.3163]
[1719398980650,7.3142,136.72,136.67,25.6085]
[1719398980822,40.2547745,136.75,136.67,25.6085]
[1719398980823,7.3148,136.71,136.67,25.6085]
[1719398981928,7.3144,136.72,136.67,25.6085]
[1719398984826,7.3147,136.71,136.67,25.6085]
[1719398985528,7.3147,136.71,136.66,7.6573]
[1719398985728,7.3147,136.71,136.67,0.34]
[1719398985952,7.3157,136.7,136.67,0.34]
[1719398986248,18.2843,136.73,136.65,7.3179]
[1719398986551,7.3154,136.7,136.66,0.34]
[1719398987051,18.2843,136.73,136.64,18.295]
[1719398987253,18.2843,136.73,136.65,0.34]
[1719398988328,15.949,136.75,136.65,0.34]
[1719398988549,7.3132,136.74,136.69,7.3158]
[1719398989245,7.3126,136.75,136.7,7.3152]
[1719398990051,7.3131,136.74,136.69,7.3156]
[1719398990255,7.3131,136.74,136.7,1.46117822]
[1719398990466,7.3137,136.73,136.69,2.921981]
[1719398990636,7.3137,136.73,136.68,48.8017]
[1719398990837,7.3137,136.73,136.69,0.34]
[1719398991143,25.29758312,136.77,136.69,0.17]
[1719398991144,7.3142,136.72,136.69,0.17]
[1719398991342,7.3138,136.73,136.68,48.4617]
[1719398993458,7.313,136.75,136.7,7.3151]
[1719398994758,7.3131,136.74,136.7,7.3151]
[1719398995058,7.3131,136.74,136.69,34.6856]
[1719398995432,7.3131,136.74,136.69,7.6556]
[1719398996283,7.3129,136.75,136.7,7.3151]
[1719398996754,7.3129,136.75,136.71,7.3147]
[1719398996960,7.3131,136.74,136.7,25.603]
[1719398997549,7.3127,136.75,136.7,25.603]
[1719398997953,7.3131,136.74,136.7,25.603]
[1719398998234,7.3131,136.74,136.7,18.288]
[1719398998866,7.3137,136.73,136.69,7.6556]
[1719398999752,7.3133,136.74,136.69,7.6556]
[1719399002975,7.3126,136.75,136.7,7.3149]
[1719399003471,7.3132,136.74,136.69,25.9447]
[1719399004049,18.2805,136.76,136.69,0.34]
[1719399004244,18.2805,136.76,136.68,30.1713]
[1719399004847,7.01848312,136.76,136.68,22.8551]
[1719399005051,7.3153,136.7,136.66,25.6097]
[1719399006074,7.3149,136.71,136.66,25.6097]
[1719399006774,7.3149,136.71,136.67,7.3168]
[1719399007563,7.3144,136.72,136.67,7.3168]
[1719399008151,7.3138,136.73,136.68,7.3162]
[1719399008765,7.3133,136.74,136.69,7.3156]
[1719399009068,7.01848312,136.75,136.7,7.3151]
[1719399009069,14.33118312,136.75,136.7,7.3151]
[1719399010269,7.3127,136.75,136.7,23.3779]
[1719399011774,7.3132,136.74,136.7,16.0628]
[1719399014146,7.3137,136.73,136.7,16.0628]
[1719399015171,7.64999878,136.76,136.69,6.2496]
[1719399015172,7.3144,136.72,136.69,6.2496]
[1719399015346,7.3144,136.72,136.68,18.2904]
[1719399015551,7.3138,136.73,136.68,25.6066]
[1719399018667,7.3133,136.74,136.69,7.3156]
[1719399018872,7.64999878,136.76,136.68,18.4604]
[1719399019066,7.64999878,136.76,136.69,0.34]
[1719399019760,7.3133,136.74,136.69,7.6554]
[1719399025774,7.3128,136.75,136.7,25.6033]